[Event "Champions Chess Tour Finals 2023"]
[Site "Chess.com"]
[Date "2023.12.15"]
[Round "2"]
[White "So, Wesley"]
[Black "Carlsen, Magnus"]
[Result "0-1"]
[WhiteElo "2737"]
[BlackElo "2818"]
[ECO "B53"]
[EventDate "2023.??.??"]
[Annotator "rafael"]
[PlyCount "120"]
[Beauty "6392253516809"]
[EventType "team-tourn"]
[TimeControl "900+3"]

1.e4 c5 2.Nf3 a6 {The O'Kelly variation of the Sicilian Defense. I don't remember Carlsen playing it with Black. Once again he shows that he can play absolutely any opening.} 3.Be2 {A timid move. 3.c3 and 3.c4 are the natural attempts to seek an advantage.} ( 3.c3 ) ( 3.c4 ) 3...d6 4.d4 cxd4 5.Qxd4 ( 5.Nxd4 Nf6 6.Nc3 e5 {Surprisingly we have a transposition to the Najdorf Defense.} ) 5...Nc6 6.Qd3 {The queen looks better placed on e3.} ( 6.Qe3 {is the most popular.} ) 6...g6 7.O-O Bg7 8.Nc3 ( 8.h3 {it makes sense to play this move in order to avoid ...Bg4.} ) 8...Nf6 ( 8...Bg4 $5 {[%c_effect g4;square;g4;type;Interesting;persistent;true] is possible, solving the problem of the c8-bishop.} ) 9.Nd5 O-O 10.c3 b5 {A double-edged move. Now White gains the chance of playing a2-a4.} ( 10...Bg4 {is again an interesting alternative.} ) 11.Bg5 $1 {[%c_effect g5;square;g5;type;GreatFind;persistent;true]} 11...Nxd5 {Relatively best.} ( 11...Nd7 12.Nd4 $5 {[%c_effect d4;square;d4;type;Interesting;persistent;true]} 12...Nde5 13.Nxc6 Nxc6 14.a4 {gives White the initiative.} ) 12.exd5 Ne5 13.Nxe5 Bxe5 {White has achieved a slight advantage thanks to the better pawn structure.} 14.h4 $6 {[%c_effect h4;square;h4;type;Inaccuracy;persistent;true] White wants to play h4-h5, creating threats on the kingside, but this is a superficial move. It's better to remove the queen from d3 immediately and decide which plan to try after Black has developed the bishop.} ( 14.Qd2 ) ( 14.Qe3 ) 14...Bf5 15.Qd2 h5 $1 {[%c_effect h5;square;h5;type;GreatFind;persistent;true] An excellent positional move, preventing the advance of White's h-pawn.} 16.Bd3 Qd7 17.Rae1 Rfe8 18.Re3 Rac8 19.Rfe1 Bxd3 20.Qxd3 Rc4 ( 20...Bf6 {likely leads to a draw after mass exchanges.} ) 21.g3 ( 21.Rxe5 {White has the option of sacrificing the exchange, but this turns out to be good enough only for equality.} 21...dxe5 22.Rxe5 Rcc8 ) 21...Rec8 22.Re4 $6 {[%c_effect e4;square;e4;type;Inaccuracy;persistent;true] Too passive. Overall, So played this game without sufficient aggression.} ( 22.Rxe5 {is interesting:} 22...dxe5 23.Rxe5 Re8 ( 23...e6 {is the computer's favorite, but it's very courageous to leave the dark squares so weakened.} ) 24.b3 Rc7 25.c4 bxc4 26.bxc4 Qa4 $1 {[%c_effect a4;square;a4;type;GreatFind;persistent;true] Black has enough counterplay to keep the game balanced.} ) ( 22.Bxe7 {leads to a draw after:} 22...Qxe7 23.f4 b4 $1 {[%c_effect b4;square;b4;type;GreatFind;persistent;true]} 24.fxe5 bxc3 25.exd6 Qxd6 26.bxc3 Rxc3 27.Qxc3 Rxc3 28.Rxc3 Qxd5 ) 22...Kg7 23.Kg2 {No other chess player has won as many endgames close to equality as Carlsen. This is another one of them.} 23...a5 24.a3 R8c5 25.f4 ( 25.Be3 {is better:} 25...Rxe4 26.Qxe4 Rc4 27.Qd3 {with equality.} ) 25...Rxe4 26.Rxe4 Bf6 27.Bxf6+ exf6 28.Rd4 Rc8 29.Re4 Rb8 30.Kh2 Qf5 31.Re3 Qxd3 32.Rxd3 {The rook endgame is drawn, but Black's rook is more active and his position is more pleasant.} 32...Re8 33.Rd2 g5 34.Kg2 ( 34.hxg5 {is more accurate:} 34...fxg5 35.fxg5 Kg6 36.Rf2 {with a probable draw.} ) 34...gxh4 35.gxh4 Re3 $1 {[%c_effect e3;square;e3;type;GreatFind;persistent;true] The most unpleasant move.} ( 35...Kg6 36.Kf3 Kf5 37.Rd4 {White is ready to play a4 and has no problems.} ) 36.f5 $2 {[%c_effect f5;square;f5;type;Mistake;persistent;true]} ( 36.Kf2 {is enough for a draw.} 36...Rh3 37.Kg2 Rxh4 38.Rd4 {followed by a4.} ) 36...Kf8 $1 {[%c_effect f8;square;f8;type;GreatFind;persistent;true] Another very precise move. Carlsen is not in a hurry to win the f-pawn.} ( 36...Re5 37.Kg3 Rxf5 38.a4 $1 {[%c_effect a4;square;a4;type;GreatFind;persistent;true]} 38...bxa4 39.c4 {White is time to create counterplay.} 39...Kf8 40.Rd3 $1 {[%c_effect d3;square;d3;type;GreatFind;persistent;true] Followed by Ra3.} ) 37.Kf2 Re5 38.b4 $6 {[%c_effect b4;square;b4;type;Inaccuracy;persistent;true] This makes things worse.} ( 38.Rd4 {is a better chance.} ) 38...axb4 $2 {[%c_effect b4;square;b4;type;Mistake;persistent;true] This lets the win slip.} ( 38...Rxf5+ {is better, keeping the option of closing the queenside with a5-a4, for instance:} 39.Ke3 Re5+ 40.Kf4 ( 40.Kd4 axb4 41.axb4 f5 $1 {[%c_effect f5;square;f5;type;GreatFind;persistent;true] followed by Re4+.} ) 40...a4 $1 {[%c_effect a4;square;a4;type;GreatFind;persistent;true] White's rook is deprived of activity now.} ) 39.axb4 Rxf5+ 40.Ke3 Re5+ 41.Kf4 Ke7 42.Rd4 Kd7 43.Rd1 Re2 44.Ra1 $1 {[%c_effect a1;square;a1;type;GreatFind;persistent;true]} 44...Rd2 45.Ra7+ Ke8 46.Kf5 {White has enough counterplay. With both players with seconds on the clock, the game will be decided by a blunder.} 46...Rf2+ 47.Ke4 f5+ 48.Ke3 Rc2 49.Kf4 Rxc3 50.Kxf5 Rc4 51.Kg5 Rxb4 52.Rb7 Rb1 53.Kxh5 ( 53.Kf6 $1 {[%c_effect f6;square;f6;type;GreatFind;persistent;true] is simpler:} 53...b4 54.Rb8+ Kd7 55.Kxf7 Kc7 56.Rb5 {Followed by Kg6 and a draw.} ) 53...b4 54.Kh6 f5 55.h5 $2 {[%c_effect h5;square;h5;type;Mistake;persistent;true] The decisive mistake. There was a forced road to a draw.} ( 55.Kg5 $1 {[%c_effect g5;square;g5;type;GreatFind;persistent;true]} 55...b3 56.h5 $1 {[%c_effect h5;square;h5;type;GreatFind;persistent;true] The only way $1} ( 56.Kxf5 $2 {[%c_effect f5;square;f5;type;Mistake;persistent;true]} 56...b2 ) ( 56.Kf6 $2 {[%c_effect f6;square;f6;type;Mistake;persistent;true]} 56...f4 ) 56...b2 57.Kf6 $1 {[%c_effect f6;square;f6;type;GreatFind;persistent;true]} 57...f4 58.h6 Rh1 59.Rxb2 Rxh6+ 60.Kg5 {with a draw.} ) 55...f4 56.Kg5 f3 {The pawns cannot be stopped anymore.} 57.h6 f2 58.Rb8+ Kd7 59.Rb7+ Kc8 60.h7 Rg1+ 0-1

[Event "Champions Chess Tour Finals 2023"]
[Site "Chess.com"]
[Date "2023.12.16"]
[Round "2"]
[White "Carlsen, Magnus"]
[Black "So, Wesley"]
[Result "1-0"]
[WhiteElo "2818"]
[BlackElo "2737"]
[ECO "D41"]
[EventDate "2023.??.??"]
[Annotator "rafael"]
[PlyCount "61"]
[Beauty "8250766393864"]
[EventType "team-tourn"]
[TimeControl "900+3"]

{[%evp 0,61,34,23,20,20,15,17,13,24,54,42,43,40,40,54,57,42,46,39,49,31,48,33,53,53,53,40,48,50,71,78,60,45,44,41,63,73,73,55,61,61,88,96,88,88,148,165,169,176,176,176,170,185,167,188,265,265,265,258,265,260,359,263]} 
1.d4 Nf6 2.c4 e6 3.Nf3 d5 4.Nc3 c5 5.cxd5 cxd4 {Carlsen called this defense \"The Berlin against 1.d4,\" a very interesting view. It's a solid line whose main variations leads to an endgame that is hard to break. Every now and then, however, the Berlin and its associates are defeated.} 6.Qxd4 exd5 7.e4 ( 7.Bg5 {is the other attempt at an advantage.} ) 7...dxe4 8.Qxd8+ Kxd8 9.Ng5 ( 9.Ne5 {Carlsen tried this move in one of his games against Caruana in the tournament.} 9...Be6 10.Bg5 Bd6 11.O-O-O Ke7 12.Nc4 Bb4 ( 12...Bc7 {is an alternative.} ) 13.Nd5+ Bxd5 14.Rxd5 Nc6 15.a3 Be1 16.Rf5 {with the initiative.} ) 9...Be6 10.Bd2 {A rare move.} ( 10.Nxe6+ fxe6 11.Bg5 {is the main line.} ) 10...Nbd7 ( 10...Bb4 $1 {[%c_effect b4;square;b4;type;GreatFind;persistent;true] is a possible improvement:} 11.Nxe6+ fxe6 12.Nxe4 Bxd2+ 13.Nxd2 Nc6 {led a close-to-equal endgame in Radjabov-Van Foreest, EU-chT Terme Catez 2021.} ) 11.Ncxe4 Nxe4 12.Nxe4 h6 {This move prepares f7-f5, driving the knight out of its great position. The plan, however, weakens the black position.} ( 12...f6 $5 {[%c_effect f6;square;f6;type;Interesting;persistent;true] with the idea of playing Ke8-f7.} ) 13.Bc3 Rc8 ( 13...f5 $2 {[%c_effect f5;square;f5;type;Mistake;persistent;true]} 14.Ng3 Ke7 {Sarana-Tabatabaei, Chess.com Rapid 2022. Here White wins a pawn with} 15.Bd3 ) 14.Bd3 f6 $1 {[%c_effect f6;square;f6;type;GreatFind;persistent;true] The best chance. The king is heading to f7.} 15.O-O ( 15.O-O-O {is possible, but allows} 15...Bb4 16.Kb1 Bxc3 17.Nxc3 Ke7 {when Black is close to equality.} ) 15...Ke8 {White's position looks very promising, but apparently Black can defend. Carlsen tries an interesting plan.} 16.Be2 $5 {[%c_effect e2;square;e2;type;Interesting;persistent;true]} ( 16.Rfe1 Kf7 17.Rad1 {Placing the rooks on the open files is natural, but Black equalizes with} 17...Nc5 ) ( 16.f4 {is the same plan tried later in the game. Here Black can try} 16...Bc4 $5 {[%c_effect c4;square;c4;type;Interesting;persistent;true]} ) 16...Kf7 17.f4 {The critical position of the game. Black needs to find a very precise move.} 17...Bc5+ $2 {[%c_effect c5;square;c5;type;Mistake;persistent;true] This grants White the pair of bishops and a safe advantage.} ( 17...Nc5 $6 {[%c_effect c5;square;c5;type;Inaccuracy;persistent;true] is also bad:} 18.f5 $1 {[%c_effect f5;square;f5;type;GreatFind;persistent;true]} 18...Nxe4 ( 18...Bxf5 19.Nxf6 $1 {[%c_effect f6;square;f6;type;GreatFind;persistent;true]} 19...gxf6 20.Rxf5 {with a clear advantage.} ) 19.fxe6+ Kxe6 20.Bg4+ Kf7 21.Bxc8 Bc5+ 22.Kh1 Rxc8 23.Be1 $1 {[%c_effect e1;square;e1;type;GreatFind;persistent;true] Black has some compensation for the exchange, but White is better.} ) ( 17...h5 $1 {[%c_effect h5;square;h5;type;GreatFind;persistent;true] is the best move, preventing the check on h5 and preparing Bg4 in some variations.} ) 18.Nxc5 Rxc5 19.Rad1 $6 {[%c_effect d1;square;d1;type;Inaccuracy;persistent;true]} ( 19.Bd4 $1 {[%c_effect d4;square;d4;type;GreatFind;persistent;true] is more accurate.} ) 19...Nb6 20.Bd4 Ra5 $6 {[%c_effect a5;square;a5;type;Inaccuracy;persistent;true]} ( 20...Rd5 $1 {[%c_effect d5;square;d5;type;GreatFind;persistent;true]} 21.Bf3 Rd6 {gives Black good chances of surviving.} ) 21.b4 Rd5 ( 21...Rxa2 $2 {[%c_effect a2;square;a2;type;Mistake;persistent;true] loses after} 22.Bh5+ g6 23.f5 $1 {[%c_effect f5;square;f5;type;GreatFind;persistent;true] opening the king's position.} ) 22.Bf3 Rb5 $2 {[%c_effect b5;square;b5;type;Mistake;persistent;true]} ( 22...Rd7 {is the only chance.} ) 23.Bc5 $1 {[%c_effect c5;square;c5;type;GreatFind;persistent;true] The rook is trapped.} 23...Na4 ( 23...Bxa2 {loses in pretty fashion:} 24.Bh5+ g6 25.Be2 Bc4 26.Rd7+ $1 {[%c_effect d7;square;d7;type;GreatFind;persistent;true]} 26...Nxd7 ( 26...Ke6 27.Re7+ Kf5 ( 27...Kd5 28.Bf3# ) 28.g4# ) 27.Bxc4+ {winning a piece.} ) 24.Be2 Rxc5 25.bxc5 Nc3 ( 25...Nxc5 26.f5 Bxa2 27.Bh5+ {with a winning attack.} ) 26.Bh5+ $1 {[%c_effect h5;square;h5;type;GreatFind;persistent;true]} 26...g6 27.Rd3 Bc4 28.Rd7+ Ke6 29.Rd6+ Kf7 30.Rc1 Ne4 31.Rd4 {White remains an exchange up.} 1-0

[Event "Survival"]
[Site "Chess.com"]
[Date "2023.12.12"]
[Round "2"]
[White "Caruana, Fabiano"]
[Black "Abdusattorov, Nodirbek"]
[Result "1-0"]
[WhiteElo "2762"]
[BlackElo "2727"]
[ECO "C95"]
[EventDate "2023.??.??"]
[Annotator "rafael"]
[PlyCount "123"]
[Beauty "6257633132551"]
[EventType "game"]
[EventCountry "GER"]
[TimeControl "900+3"]

{[%evp 0,123,25,8,18,21,17,34,32,6,2,11,19,14,17,20,16,-20,-14,-17,16,-4,-4,2,11,9,31,21,33,33,38,26,43,34,38,13,26,21,38,4,21,-7,0,-2,3,0,-5,12,2,27,0,-23,-19,-43,-26,-12,-16,-16,22,19,33,28,45,8,20,-2,12,19,9,-32,-41,-41,41,42,87,85,97,85,123,119,119,122,125,118,151,158,146,97,145,100,151,145,171,158,169,158,197,192,235,229,285,308,293,311,271,303,308,308,315,315,603,620,628,459,452,659,739,739,1131,1131,789,789,1201,1218,29975,29982]} 
1.e4 e5 2.Nf3 Nc6 3.Bb5 a6 4.Ba4 Nf6 5.O-O Be7 6.Re1 b5 7.Bb3 d6 8.c3 O-O 9.h3 Nb8 {The good old Breyer Variation of the Ruy Lopez remains popular to this day. At one point it was one of Magnus Carlsen's favorite defenses.} 10.d4 Nbd7 11.Nbd2 Bb7 12.Bc2 Re8 13.Nf1 Bf8 14.Ng3 a5 {A very rare plan. The overwhelming majority of games continue with 14...g6. Black advances the pawn to a4, gaining some space and preventing White from playing the typical a2-a4.} ( 14...g6 ) 15.Bd2 a4 16.Bd3 c6 17.Qc2 Qb6 18.Be3 Qa5 19.Bd2 ( 19.Bf1 {was played in a GM game in classical time control this year. White was slightly better after} 19...Qc7 20.Rad1 h6 21.b4 axb3 22.axb3 {Ivic-Demchenko, Ankara 2023.} ) 19...Qb6 20.Rad1 {This natural move is a novelty, but now Black is able to solve the opening problems.} 20...c5 $1 {[%c_effect c5;square;c5;type;GreatFind;persistent;true]} 21.dxe5 {It's always a difficult decision for White in the Ruy Lopez, whether to play d5 or to take the e5-pawn.} ( 21.d5 c4 22.Bf1 Nc5 {with an equal position.} ) 21...Nxe5 ( 21...dxe5 {It's also possible to capture with the pawn, since the knight is ready to go to d4.} 22.c4 b4 23.Nf5 Nb8 $1 {[%c_effect b8;square;b8;type;GreatFind;persistent;true]} 24.Ne3 Qd6 25.Nd5 Nc6 {with a balanced position.} ) 22.Nxe5 dxe5 23.c4 b4 24.Nf5 Qc6 {A good move to prevent Ne3.} 25.Bg5 ( 25.Ne3 $2 {[%c_effect e3;square;e3;type;Mistake;persistent;true]} 25...Nxe4 ) ( 25.f3 {is possible so that the knight can go to d5.} ) 25...Nh5 $1 {[%c_effect h5;square;h5;type;GreatFind;persistent;true]} 26.g3 $6 {[%c_effect g3;square;g3;type;Inaccuracy;persistent;true]} ( 26.f3 {is again possible.} ) 26...Qg6 $6 {[%c_effect g6;square;g6;type;Inaccuracy;persistent;true] The queen is not well-placed here.} ( 26...g6 $1 {[%c_effect g6;square;g6;type;GreatFind;persistent;true] is the best move, exploiting the position of the bishop on g5.} 27.Be2 ( 27.Ne3 $2 {[%c_effect e3;square;e3;type;Mistake;persistent;true]} 27...h6 {and the bishop is trapped.} ) ( 27.Nh6+ $6 {[%c_effect h6;square;h6;type;Inaccuracy;persistent;true]} 27...Bxh6 28.Bxh6 Ng7 29.Bxg7 Kxg7 {with a clear positional advantage for Black.} ) ( 27.Qe2 Nf4 $5 {[%c_effect f4;square;f4;type;Interesting;persistent;true]} 28.gxf4 gxf5 {with good counterplay.} ) 27...Nf4 $5 {[%c_effect f4;square;f4;type;Interesting;persistent;true]} ( 27...gxf5 28.Bxh5 fxe4 29.Rd5 Qe6 30.Qxe4 {leads to an unclear position.} ) ( 27...Qxe4 28.Qxe4 Bxe4 29.Nd6 Bxd6 30.Bxh5 $1 {[%c_effect h5;square;h5;type;GreatFind;persistent;true] with equality.} ) 28.gxf4 gxf5 {with good chances for Black, but the position remains very complicated.} ) 27.Qc1 h6 28.Be3 Nf6 29.f3 ( 29.Nh4 {is also possible.} 29...Qh7 30.f3 {Black's queen is in a funny position, but it's not a big deal.} ) 29...Nh5 ( 29...Nd7 $1 {[%c_effect d7;square;d7;type;GreatFind;persistent;true] is more accurate, preparing the maneuver to d4.} ) 30.Kh2 ( 30.g4 {is tempting, forcing the knight back.} 30...Nf6 ( 30...Nf4 $2 {[%c_effect f4;square;f4;type;Mistake;persistent;true] is bad:} 31.Bxf4 exf4 32.e5 {with a big advantage for White.} ) ) 30...Qf6 31.Rf1 Red8 {The big question is whether White will be able to place the knight on the ideal d5-square.} 32.Qd2 ( 32.Be2 {invites exchanges on the d-file, with an equal position.} ) 32...a3 33.b3 Rd7 34.Bg1 Rad8 35.Qe2 Re8 $2 {[%c_effect e8;square;e8;type;Mistake;persistent;true] After this Caruana places the knight on the dream square and Abdusattorov is never back in the game.} ( 35...g6 36.Ne3 Qe6 37.Nd5 f5 $1 {[%c_effect f5;square;f5;type;GreatFind;persistent;true] This is an interesting plan. Black gets counterplay on the kingside as compensation for the strong knight.} ) 36.Ne3 $1 {[%c_effect e3;square;e3;type;GreatFind;persistent;true]} 36...g6 37.Nd5 Qd8 38.Be3 {[%c_highlight d5;keyPressed;none;opacity;0.8;square;d5;persistent;false] This is a positional tragedy for Black. If the knight is captured then White captures with the c-pawn and works on the c-file to capture Black's pawn on c5. Furthermore, the bishop gains the c4-square and it's possible to play on the kingside with the f4 break.} 38...Kh7 39.Qf2 Qa5 40.Bc2 Bc6 41.Rd2 Bxd5 42.cxd5 Bd6 43.Bd3 ( 43.Rg1 $1 {[%c_effect g1;square;g1;type;GreatFind;persistent;true] is more accurate, protecting the g3-pawn and thus preventing any attempt of counterplay with f7-f5.} ) 43...Rc7 ( 43...f5 $5 {[%c_effect f5;square;f5;type;Interesting;persistent;true] Black should try to create some play with this move. The pawn cannot be captured:} 44.exf5 $2 {[%c_effect f5;square;f5;type;Mistake;persistent;true]} 44...e4 {Attacking the bishop and the g3-pawn.} ) 44.Rc2 Nf6 45.Rfc1 Rec8 46.Qd2 {It's one-way traffic now.} 46...Bf8 47.Qe2 Ne8 48.f4 $1 {[%c_effect f4;square;f4;type;GreatFind;persistent;true] Black's position can no longer be sustained.} 48...Bg7 49.Qf2 Nd6 50.Rxc5 Rxc5 51.Rxc5 Qd8 52.Rxc8 Qxc8 53.Bc5 Qb8 54.Qd2 {The b4-pawn also falls.} 54...exf4 55.Qxf4 Bf8 56.e5 Nf5 57.Bxf8 Qxf8 58.Bxf5 gxf5 59.Qxf5+ Kg8 60.d6 Qd8 61.d7 Qb6 62.Qf6 1-0